[Event "20th Delhi GM Open 2023"]
[Site "New Delhi"]
[Date "2023.03.24"]
[Round "3.8"]
[White "Lalit Babu M R"]
[Black "Jaidambareesh N R"]
[Result "1/2-1/2"]
[ECO "D90"]
[WhiteElo "2544"]
[BlackElo "1666"]
[Annotator "TA"]
[PlyCount "108"]
[EventDate "2023.03.23"]
[EventType "swiss"]
[EventCountry "IND"]
[SourceTitle "playchess.com"]
[Source "ChessBase"]
[SourceQuality "1"]
[TimeControl "5400+30"]

{[%evp 9,108,-22,7,-34,-20,-22,-32,-31,2,0,6,4,6,0,12,14,56,43,100,0,0,0,0,-70,29,22,22,-15,0,-30,0,0,13,0,0,0,0,0,0,0,18,-34,-10,-158,0,0,0,-9,6,12,4,0,13,10,9,0,0,0,0,0,0,0,0,0,5,0,15,0,0,-68,18,18,39,16,55,28,40,42,99,46,100,64,67,0,122,125,160,131,154,90,113,90,198,192,267,186,397,0,0,-122,-119]} 1. d4 {[%emt 0:00:03]} Nf6 {[%emt 0:00:09]} 2. Nf3 {[%emt 0:00:05]} g6 {[%emt 0:00:18]} 3. c4 {[%emt 0:00:42]} Bg7 {[%emt 0:00:09]} 4. Nc3 {[%emt 0:00:06]} d5 {[%emt 0:00:08]} 5. h4 {[%emt 0:01:08]} c6 {[%emt 0:02:47]} 6. Ne5 {[%emt 0:03:17] D90: Grünfeld: 4 Nf3 Bg7 sidelines.} Nbd7 {[%emt 0:06:31] [#]} 7. Bf4 $146 {[%emt 0:00:59]} ({Predecessor:} 7. Nf3 O-O 8. cxd5 cxd5 9. Bf4 Re8 10. e3 Nb6 11. Ne5 Nbd7 12. Be2 Ne4 13. Nxd5 Qa5+ 14. b4 Qxd5 15. Bc4 {½-½ Kilani,K (2075)-Ferjaoui,K (1759) Hammamet Carthage op 1st 2015 (3)}) 7... Nxe5 {[%emt 0:06:21]} 8. Bxe5 {[%emt 0:00:21] Black is slightly better.} O-O {[%emt 0:00:57]} 9. e3 {[%emt 0:01:39]} h5 {[%emt 0:07:44]} 10. Qb3 {[%emt 0:03:56]} e6 {[%emt 0:06:18]} 11. Be2 {[%emt 0:06:03]} Re8 {[%emt 0:04:30]} 12. O-O-O {[%emt 0:09:33]} dxc4 {[%emt 0:18:40]} 13. Qxc4 {[%emt 0:01:08][%cal Og2g4]} Bd7 {[%emt 0:01:58]} (13... a5 $14) 14. Bxf6 {[%emt 0:03:05]} (14. g4 $16 {Strongly threatening gxh5.} hxg4 15. Rhg1) 14... Qxf6 $11 {[%emt 0:02:34]} 15. Ne4 {[%emt 0:00:31]} Qe7 {[%emt 0:00:11]} 16. f4 {[%emt 0:00:14]} (16. g4 $11) 16... f5 {[%emt 0:01:31]} ({Black should play} 16... b6 $15) 17. Nc5 {[%emt 0:05:06]} b6 {[%emt 0:03:22]} 18. Nd3 {[%emt 0:00:34]} Rac8 {[%emt 0:01:54]} 19. Bf3 {[%emt 0:01:04]} c5 {[%emt 0:03:51]} 20. dxc5 {[%emt 0:00:12]} Bc6 {[%emt 0:00:23][%cal Oc6e4]} 21. e4 {[%emt 0:01:19]} fxe4 {[%emt 0:03:22]} 22. Bxe4 {[%emt 0:00:13]} Qf6 {[%emt 0:06:27][%cal Oc6d5] White must now prevent ...Bd5!} 23. Bxc6 {[%emt 0:05:07]} Rxc6 {[%emt 0:00:15]} 24. Rd2 {[%emt 0:00:10]} Rd8 {[%emt 0:04:25]} (24... Rec8 $5 {[%cal Rc6c5]} 25. Qe4 Rd6 $11) 25. Rhd1 {[%emt 0:01:39]} (25. Qe4 $11 Rc7 26. Re1) 25... Qf5 {[%emt 0:03:28]} 26. Re1 {[%emt 0:19:55] [#]} (26. Qc2 $11) 26... Rd5 {[%emt 0:02:41]} (26... Rd4 $1 $17 {[%cal Rd4c4]} 27. Qc2 e5) 27. Qa4 {[%emt 0:09:40]} Rc8 {[%emt 0:05:30]} 28. Qe4 {[%emt 0:00:16]} Qxe4 {[%emt 0:00:08]} 29. Rxe4 {[%emt 0:00:06]} bxc5 {[%emt 0:00:53]} 30. b3 {[%emt 0:01:22]} (30. Rxe6 $2 Rcd8 31. Rxg6 c4 $19) 30... Rcd8 {[%emt 0:00:12]} 31. Kc2 {[%emt 0:00:03]} R8d6 {[%emt 0:00:30]} 32. Rd1 {[%emt 0:02:35]} Bd4 {[%emt 0:00:17]} 33. Rde1 {[%emt 0:04:31]} Kf7 {[%emt 0:00:38]} 34. R1e2 {[%emt 0:00:08]} Kf6 {[%emt 0:00:25]} 35. Ne5 {[%emt 0:00:20]} Ra6 {[%emt 0:00:18]} 36. a4 {[%emt 0:00:03]} Rd8 {[%emt 0:00:03]} 37. Nf3 {[%emt 0:00:50]} Rb6 {[%emt 0:00:28]} 38. Rd2 {[%emt 0:04:56][%cal Rf3d4]} Rb4 {[%emt 0:00:13]} 39. Ne5 {[%emt 0:00:49]} (39. g3 $11) 39... Rb6 {[%emt 0:00:55]} (39... Bxe5 $15 40. fxe5+ Kf5 41. Rxd8 Rxe4) 40. Rd3 {[%emt 0:00:29]} Rbd6 {[%emt 0:00:50]} 41. Rg3 {[%emt 0:00:47]} Rg8 {[%emt 0:00:38]} 42. Rg5 {[%emt 0:00:21]} Rg7 {[%emt 0:01:22]} 43. Re2 {[%emt 0:02:07]} Rb6 {[%emt 0:01:06] [#]} (43... Rd8 $14) 44. Rd2 {[%emt 0:01:28]} ({Better is} 44. g4 $1 $16) 44... Rbb7 {[%emt 0:01:18]} (44... Rd6 $14) 45. Rd3 {[%emt 0:00:39]} Bf2 {[%emt 0:00:45]} 46. Nf3 {[%emt 0:00:56]} ({White should try} 46. Rh3 $14) 46... Rbc7 {[%emt 0:00:22]} (46... Rb4 $11 {remains equal.}) 47. Rd8 $16 {[%emt 0:01:30]} Be3 {[%emt 0:00:25]} 48. g3 {[%emt 0:00:03]} Rcd7 {[%emt 0:01:23]} 49. Rxd7 {[%emt 0:00:49]} (49. Re8 $142 {aiming for Re5.} Rge7 50. Rxe7 Rxe7 51. Kd3) 49... Rxd7 {[%emt 0:00:01] KRB-KRN} 50. Ne5 {[%emt 0:00:01]} Rg7 {[%emt 0:00:14]} (50... Rd2+ $16 51. Kc3 Rd1) 51. Kd3 $18 {[%emt 0:00:03]} Bd4 {[%emt 0:00:16]} (51... Bf2 {is a better defense.} 52. Ke4 Rg8 53. Nd7+ {[%mdl 64] Discovered Attack} Ke7) 52. Kc4 {[%emt 0:00:15] b4 is the strong threat.} Rg8 $2 {[%emt 0:00:17]} (52... Be3 {might work better.} 53. Nd3 Rd7) 53. Nd7+ $2 {[%emt 0:00:27]} (53. b4 $18) 53... Ke7 $1 $11 {[%emt 0:00:08]} 54. Nxc5 {[%emt 0:00:04]} (54. Ne5 $11) 54... Bf6 {[%emt 0:00:07] Weighted Error Value: White=0.37/Black=0.32} 1/2-1/2

[Event "20th Delhi GM Open 2023"]
[Site "New Delhi"]
[Date "2023.03.24"]
[Round "3.9"]
[White "Arnav Mahesh Koli"]
[Black "Krasenkow, Michal"]
[Result "0-1"]
[ECO "B14"]
[WhiteElo "1663"]
[BlackElo "2527"]
[Annotator "TA"]
[PlyCount "84"]
[EventDate "2023.03.23"]
[EventType "swiss"]
[EventCountry "IND"]
[SourceTitle "playchess.com"]
[Source "ChessBase"]
[SourceQuality "1"]
[TimeControl "5400+30"]

{[%evp 18,84,-7,-11,-7,-21,-11,-36,-18,-30,-17,-43,-36,-45,-36,-74,-77,-74,-62,-94,-92,-83,-56,-54,-33,-40,-37,-30,-21,-22,-3,-58,-65,-140,-138,-255,-180,-243,-246,-469,-465,-590,-593,-721,-713,-704,-712,-1032,-1006,-1623,-1635,-1462,-1397,-5581,-1374,-1356,-1353,-1288,-1245,-29994,-29995,-29995,-29996,-29996,-29997,-29997,-29998,-29998,-29999]} 1. e4 {[%emt 0:00:03]} c6 {[%emt 0:00:26]} 2. d4 {[%emt 0:00:41]} d5 {[%emt 0:00:06]} 3. exd5 {[%emt 0:00:16]} cxd5 {[%emt 0:00:05]} 4. c4 {[%emt 0:00:15]} Nf6 {[%emt 0:00:07]} 5. Nc3 {[%emt 0:00:14]} g6 {[%emt 0:00:18]} 6. Nf3 {[%emt 0:00:30]} Bg7 {[%emt 0:00:09]} 7. cxd5 {[%emt 0:04:07]} Nxd5 {[%emt 0:00:11]} 8. Bb5+ {[%emt 0:00:29]} Bd7 {[%emt 0:01:35]} 9. Qb3 {[%emt 0:00:48]} Nxc3 {[%emt 0:00:37]} 10. bxc3 {[%emt 0:00:19]} O-O {[%emt 0:05:58] B14: Caro-Kann: Panov-Botvinnik Attack with 5...e6 and 5...g6.} 11. O-O {[%emt 0:05:17]} Be6 {[%emt 0:00:26]} 12. Bc4 {[%emt 0:00:55]} Bxc4 {[%emt 0:00:14] Black is slightly better.} 13. Qxc4 {[%emt 0:00:02]} Nc6 {[%emt 0:04:09]} 14. Ba3 {[%emt 0:02:19] [#]} Qd7 $146 {[%emt 0:00:49]} ({Predecessor:} 14... Rc8 15. Qb5 Qc7 16. Rfe1 Rfd8 17. Rab1 b6 18. Qg5 e6 19. Qg4 Na5 20. Bb2 Qc4 {1-0 Visakh,N (2346)-Thejkumar,M (2459) New Delhi Parsvnath op 13th 2015 (10)}) 15. Rfe1 {[%emt 0:03:46]} Rfd8 {[%emt 0:00:33]} 16. Re3 {[%emt 0:09:34]} Rac8 {[%emt 0:00:57][%cal Rc6d4] ...Nxd4! would be deadly.} 17. Qe2 {[%emt 0:03:02][%cal Ra3e7]} ({Not} 17. Ng5 $2 Qf5 18. h4 h6 $19) 17... e6 {[%emt 0:00:11]} 18. Ng5 {[%emt 0:01:39]} Qd5 {[%emt 0:00:47] Against Rf3} 19. Ne4 {[%emt 0:00:33]} Na5 {[%emt 0:00:22][%cal Bc6a5,Ba5c4,Bc4d6,Bd6f5][%mdl 32] Threatens to win with ...Nc4.} 20. Be7 {[%emt 0:00:31]} Rd7 {[%emt 0:01:26][%cal Bd8d7,Bd7c7,Bc7c3,Bc3e3][%mdl 32]} (20... Nc4 $5) 21. Bf6 {[%emt 0:00:50]} Nc4 {[%emt 0:00:59]} 22. Bxg7 {[%emt 0:08:05]} Kxg7 {[%emt 0:00:05]} 23. Rh3 {[%emt 0:00:38][%cal Oh3h7] Rxh7+! is the strong threat.} h5 {[%emt 0:04:40]} 24. Rg3 {[%emt 0:00:59]} (24. Rf3 $11) 24... Nd6 $15 {[%emt 0:00:31]} 25. Nc5 {[%emt 0:01:07] Black continues to play with concentration.} (25. Nxd6 $15 Rxd6 26. h3) 25... Rdc7 $17 {[%emt 0:00:45]} 26. h4 {[%emt 0:01:07]} (26. Qe1 $17) 26... Nf5 {[%emt 0:03:21]} 27. Rg5 {[%emt 0:00:29] [#]} (27. Rh3 $142) 27... b6 $1 $19 {[%emt 0:01:39]} 28. Nd3 {[%emt 0:10:54]} ({Much weaker is} 28. Ne4 f6 29. g4 Nxd4 $19) (28. g4 bxc5 29. gxf5 exf5 30. Rd1) 28... Rxc3 {[%emt 0:00:13]} 29. Rd1 {[%emt 0:18:00]} Qxd4 {[%emt 0:01:50]} 30. Ne1 {[%emt 0:01:55]} Qxh4 {[%emt 0:06:22]} 31. Qe5+ {[%emt 0:08:39]} Kg8 {[%emt 0:00:17]} 32. Rxg6+ {[%emt 0:05:23]} fxg6 {[%emt 0:00:01]} 33. Rd7 {[%emt 0:00:13] [#]} Re3 $3 {[%emt 0:00:36]} 34. Qa1 {[%emt 0:02:28]} Rec3 {[%emt 0:00:27] aiming for ...Qf4.} 35. Qd1 {[%emt 0:00:58]} Qe4 {[%emt 0:01:31] ( -> ...Rc1)} 36. Rd8+ {[%emt 0:00:45]} Rxd8 {[%emt 0:00:07]} 37. Qxd8+ {[%emt 0:00:04]} Kf7 {[%emt 0:00:07]} 38. Nf3 {[%emt 0:00:41]} Rc1+ {[%emt 0:00:05] Black mates.} 39. Kh2 {[%emt 0:00:03]} Qf4+ {[%emt 0:00:07]} 40. g3 {[%emt 0:00:09]} Qxf3 {[%emt 0:00:05][%csl Gf3][%cal Rc1h1]} 41. Qd7+ {[%emt 0:00:05]} Ne7 {[%emt 0:00:06][%csl Gf3][%cal Rc1h1]} 42. Qxe6+ {[%emt 0:00:23]} Kxe6 {[%emt 0:00:25] Weighted Error Value: White=1.11/Black=0.24 (precise)} 0-1

[Event "20th Delhi GM Open 2023"]
[Site "New Delhi"]
[Date "2023.03.25"]
[Round "4.1"]
[White "Sethuraman, S.P."]
[Black "Apoorv Kamble"]
[Result "1-0"]
[ECO "E12"]
[WhiteElo "2639"]
[BlackElo "1909"]
[Annotator "TA"]
[PlyCount "111"]
[EventDate "2023.03.23"]
[EventType "swiss"]
[EventCountry "IND"]
[SourceTitle "playchess.com"]
[Source "ChessBase"]
[SourceQuality "1"]
[TimeControl "5400+30"]

{[%evp 15,110,25,27,26,22,7,43,11,18,7,8,2,11,-8,0,-20,0,-21,-16,-31,0,-24,-24,-70,-69,-60,-45,-102,-52,-74,-52,-112,7,-87,0,-30,-26,-22,-23,-10,0,-20,62,68,67,61,99,95,122,116,141,129,132,129,160,161,193,118,213,193,188,176,180,165,206,81,212,208,220,225,210,209,236,241,354,358,345,365,304,317,435,397,373,285,368,307,297,282,489,479,601,591,519,442,1419,510,29991]} 1. d4 {[%emt 0:00:53]} Nf6 {[%emt 0:00:07]} 2. c4 {[%emt 0:00:06]} e6 {[%emt 0:00:05]} 3. Nf3 {[%emt 0:00:13]} b6 {[%emt 0:00:14]} 4. Nc3 {[%emt 0:00:22]} Bb7 {[%emt 0:00:39]} 5. a3 {[%emt 0:00:21]} d5 {[%emt 0:01:21]} 6. cxd5 {[%emt 0:00:29]} exd5 {[%emt 0:01:04]} 7. Bf4 {[%emt 0:05:51]} Be7 {[%emt 0:06:37]} 8. e3 {[%emt 0:04:18]} O-O {[%emt 0:01:28]} 9. Be2 {[%emt 0:00:08] E12: Queen's Indian: Unusual White 4th moves, 4 a3, 4 Nc3 Bb7 5 a3 and 4 Nc3 Bb7 .} Ne4 {[%emt 0:02:27]} 10. Rc1 {[%emt 0:10:37] Threatening Nxe4.} c5 {[%emt 0:07:08] [#]} 11. dxc5 $146 {[%emt 0:07:21] White is slightly better.} ({Predecessor:} 11. O-O Nd7 12. Ne5 Nxe5 13. dxe5 f5 14. exf6 Nxc3 15. bxc3 Bxf6 16. Bf3 Qd7 17. Qb3 {0-1 Stevanovic,V-Radocaj,D YUG Team-ch35 1983}) 11... Nxc3 $1 {[%emt 0:02:33]} 12. Rxc3 {[%emt 0:00:07]} bxc5 {[%emt 0:02:27]} 13. O-O {[%cal Ob2b4]} Nd7 {[#]} 14. b4 $1 {[%emt 0:32:19]} c4 {[%emt 0:05:21]} (14... cxb4 15. Rc7 Rb8 16. axb4 $16) 15. Nd4 {[%emt 0:00:06]} a5 {[%emt 0:07:16]} 16. b5 {[%emt 0:00:15]} Bf6 {[%emt 0:15:03]} 17. Bf3 {[%emt 0:00:47][%cal Oc3c4] Black must now prevent Rxc4!} Ne5 {[%emt 0:02:43]} 18. Be2 {[%emt 0:11:21]} a4 {[%emt 0:05:12]} 19. Bg3 {[%emt 0:06:00]} (19. Qd2 $11) 19... Qb6 {[%emt 0:02:06]} 20. Rc2 {[%emt 0:01:20]} Rfd8 {[%emt 0:05:25]} 21. Rd2 {[%emt 0:03:51]} (21. h3 $15) 21... Qc5 {[%emt 0:11:05]} (21... Ra5 $1 $17) 22. Qc1 {[%emt 0:00:05]} Nd7 {[%emt 0:06:54]} 23. Rfd1 {[%emt 0:00:39]} ({Better is} 23. Bf3 $15) 23... Be7 {[%emt 0:07:03]} ({Reject} 23... Bxd4 $6 24. Rxd4 Nf8 25. R4d2 $11 (25. Bxc4 $2 Rdc8 $19)) ({Black should try} 23... Qb6 $1 $17 {Hoping for ...Nc5.} 24. Nc6 Nc5 25. Nxd8 (25. Rxd5 Rxd5 26. Rxd5 Qxb5 $17) 25... Nb3 26. Nxb7 (26. Qc2 Rxd8 27. Rb1 Nxd2 $17) 26... Nxc1 27. Rxc1 Qxb7) 24. Ra2 {[%emt 0:09:44] [#]} (24. Nc6 $11 Bxc6 25. bxc6 Qxc6 26. Rxd5) 24... Nf6 {[%emt 0:01:24]} (24... Qb6 $1 $17) 25. Be5 {[%emt 0:00:25]} Ne4 {[%emt 0:01:08]} 26. Bf3 {[%emt 0:01:00]} Ng5 {[%emt 0:01:03]} 27. Bg4 {[%emt 0:00:24]} Ne4 {[%emt 0:00:17]} 28. Qa1 {[%emt 0:01:29][%cal Oe5g7] Bxg7! is the strong threat.} Bf6 {[%emt 0:01:31]} (28... Bf8 $11) 29. Bxf6 $14 {[%emt 0:00:46]} Nxf6 {[%emt 0:00:02]} 30. Bf3 {[%emt 0:00:05]} Rac8 {[%emt 0:01:23]} 31. Qc3 {[%emt 0:00:13]} Nd7 {[%emt 0:00:42]} 32. Bg4 {[%emt 0:02:46]} Rc7 {[%emt 0:01:11]} 33. Bxd7 {[%emt 0:00:03]} Rcxd7 {[%emt 0:00:08] Black is weak on the dark squares} 34. Rb2 $40 {[%emt 0:00:03][%mdl 128] Black is in trouble.} Rd6 {[%emt 0:01:03]} 35. Qb4 {[%emt 0:00:15]} ({But not} 35. Nf5 d4 36. Nxd4 Rg6 $14) 35... Qa7 {[%emt 0:01:26]} 36. b6 {[%emt 0:00:25]} (36. Rbd2 $18) 36... Qb8 {[%emt 0:01:07]} (36... Qa8 $16 {might work better.} 37. Rdb1 Rg6) 37. Qxa4 $18 {[%emt 0:00:29]} Rh6 {[%emt 0:00:09] Strongly threatening ...c3.} 38. h3 {[%emt 0:00:28] Active counter play!} Qc8 {[%emt 0:00:25]} 39. Qc2 {[%emt 0:02:50]} Rg6 {[%emt 0:00:33]} 40. Kh1 {[%emt 0:00:24]} (40. a4 $18 {and White stays clearly on top.}) 40... Rdd6 {[%emt 0:00:48] Loses the game.} (40... Qc5 $16 {was worth a try.}) 41. Rdb1 {[%emt 0:00:21]} Rg5 {[%emt 0:00:29] [#]} 42. f4 $1 {[%emt 0:00:27]} Rh5 {[%emt 0:00:10]} 43. Qe2 {[%emt 0:00:56]} Rdh6 {[%emt 0:00:22][%cal Oh5h3]} 44. f5 Rxf5 {[%emt 0:01:17]} (44... Rh4 $142 45. a4 Qe8) 45. Nxf5 {[%emt 0:00:41]} Qxf5 {[%emt 0:00:02]} 46. Qf3 {[%emt 0:00:44]} Qc8 {[%emt 0:00:50][%cal Od5d4]} 47. Rf2 {[%emt 0:00:29]} Qd7 {[%emt 0:01:36]} 48. Qf4 {[%emt 0:00:36]} Rc6 {[%emt 0:00:29] Against Qc7} 49. Qd4 {[%emt 0:00:33] Threatens to win with e4.} c3 {[%emt 0:00:31]} 50. Rc1 {[%emt 0:00:27]} Rc4 {[%emt 0:00:20]} 51. Qe5 {[%emt 0:00:22]} d4 {[%emt 0:00:19]} (51... f6 52. Qg3 Qd8) 52. exd4 {[%emt 0:00:05]} Qxh3+ {[%emt 0:00:40]} 53. Kg1 {[%emt 0:00:04][%cal Re5e8]} Qd7 {[%emt 0:00:04] Against Qe8+} 54. d5 {[%emt 0:01:11]} Bxd5 {[%emt 0:00:52]} (54... h6 $142 55. Rxc3 Rxc3 56. Qxc3 Qxd5) 55. Rxc3 {[%emt 0:00:26]} (55. Rd1 $142 c2 56. Rxc2 Rxc2 57. Rxd5) 55... Re4 {[%emt 0:00:01] [#]} (55... Rxc3 $18 56. Qxc3 Qe6) 56. Qxd5 $3 {[%emt 0:00:27][%mdl 576] Deflection, Back Rank. Beautiful play by Sethuraman!   Weighted Error Value: White=0.40/Black=0.47} 1-0

[Event "20th Delhi GM Open 2023"]
[Site "New Delhi"]
[Date "2023.03.25"]
[Round "4.2"]
[White "Swayham P Das"]
[Black "Aravindh, Chithambaram VR."]
[Result "0-1"]
[ECO "B90"]
[WhiteElo "1906"]
[BlackElo "2607"]
[Annotator "TA"]
[PlyCount "90"]
[EventDate "2023.03.23"]
[EventType "swiss"]
[EventCountry "IND"]
[SourceTitle "playchess.com"]
[Source "ChessBase"]
[SourceQuality "1"]
[TimeControl "5400+30"]

{[%evp 11,90,8,12,-7,-2,-10,17,8,11,0,14,28,47,7,24,36,45,20,37,39,72,26,8,-16,24,0,0,0,0,0,0,12,35,32,25,2,34,21,29,23,57,31,73,47,114,95,92,119,118,88,88,34,51,0,16,-45,-56,-52,-21,-84,-85,-62,-58,-144,-41,-63,-24,-45,-25,-35,-25,-635,-603,-1203,-1237,-1022,-979,-29995,-29996,-29996,-29997]} 1. e4 {[%emt 0:00:18]} c5 {[%emt 0:00:08]} 2. Nf3 {[%emt 0:00:05]} d6 {[%emt 0:00:10]} 3. d4 {[%emt 0:00:05]} cxd4 {[%emt 0:00:07]} 4. Nxd4 {[%emt 0:00:06]} Nf6 {[%emt 0:00:08]} 5. Nc3 {[%emt 0:00:05]} a6 {[%emt 0:00:13]} 6. Bd3 {[%emt 0:00:17]} g6 {[%emt 0:03:01]} 7. h3 {[%emt 0:00:21] B90: Sicilian Najdorf: Unusual White 6th moves, 6 Be3 Ng4 and 6 Be3 e5.} Bg7 {[%emt 0:00:08]} 8. Be3 {[%emt 0:00:06]} Nc6 {[%emt 0:04:55]} 9. Qd2 {[%emt 0:06:38] The position is equal.} O-O {[%emt 0:03:08]} 10. f4 {[%emt 0:03:49] [#]} Nd7 $146 {[%emt 0:05:10]} ({Predecessor:} 10... Bd7 11. O-O-O b5 12. f5 Ne5 13. g4 b4 14. Nce2 Qa5 15. Kb1 Bb5 16. Nf4 Bc4 {0-1 Jarosczinsky,E-Schimron,H DDR-ch M572 corr 1974}) 11. Be2 {[%emt 0:05:28]} Nc5 {[%emt 0:00:23]} 12. O-O {[%emt 0:01:25]} Bd7 {[%emt 0:00:31]} 13. Rad1 {[%emt 0:02:51]} b5 {[%emt 0:06:39]} 14. Bf3 {[%emt 0:03:09]} Rc8 {[%emt 0:12:04] [#]} 15. e5 $1 {[%emt 0:03:42]} Na5 {[#]} (15... Nxd4 16. Bxd4) 16. Be2 {[%emt 0:03:54]} (16. b3 $1 $16) 16... Ncb7 $11 {[%emt 0:14:55]} 17. Nf3 {[%emt 0:19:11]} Nc4 {[%emt 0:03:29]} 18. Bxc4 {[%emt 0:00:06]} Rxc4 {[%emt 0:00:05]} 19. Bd4 {[%emt 0:06:57]} Bc6 {[%emt 0:16:25]} 20. b3 {[%emt 0:00:19]} Bxf3 $1 {[%emt 0:02:32]} 21. Rxf3 {[%emt 0:00:53]} Rc6 {[%emt 0:00:57]} 22. Rd3 $36 {[%emt 0:09:58][%mdl 2048] White has the initiative.} d5 {[%emt 0:03:05]} 23. b4 {[%emt 0:05:55]} e6 {[%emt 0:03:17]} 24. a4 {[%emt 0:00:42]} bxa4 {[%emt 0:02:32]} 25. Nxa4 {[%emt 0:00:05]} Qd7 {[%emt 0:02:27] Black is weak on the dark squares} 26. Ra3 {[%emt 0:00:41]} Rb8 {[%emt 0:00:30][%cal Bf8b8,Bb8b6,Bb6c6][%mdl 32]} 27. c3 {[%emt 0:00:40]} Bf8 {[%emt 0:00:31]} (27... a5 $14) 28. Nb6 $16 {[%emt 0:01:54][%mdl 64] Discovered Attack} Rxb6 {[%emt 0:02:07]} 29. Bxb6 {[%emt 0:00:05]} Nd6 {[%emt 0:00:05] aiming for ...Nc4.} 30. exd6 {[%emt 0:00:52]} Rxb6 {[%emt 0:00:02]} 31. Rda1 {[%emt 0:03:39]} (31. f5 $16) 31... Qxd6 $14 {[%emt 0:00:07]} 32. Ra5 {[%emt 0:02:41]} ({White should play} 32. Qd3 $14) 32... Bg7 {[%emt 0:01:26]} 33. Rd1 {[%emt 0:02:29]} (33. Rc5 $11) 33... Rc6 $15 {[%emt 0:00:46][%mdl 1024] Black has compensation.} 34. Ra3 {[%emt 0:05:32]} Bf6 {[%emt 0:02:02]} (34... Qc7 $5 {[%cal Rg7c3]} 35. Rc1 d4 $15) 35. g3 {[%emt 0:01:42]} (35. Rf1 $11 {remains equal.}) 35... h5 $17 {[%emt 0:01:08]} 36. h4 {[%emt 0:01:11]} Qc7 {[%emt 0:00:10][%cal Rf6c3]} 37. Rc1 {[%emt 0:01:19] [#]} (37. Qe2 $15) 37... Kg7 {[%emt 0:00:32]} (37... Rc4 $1 $17 {[%cal Oa6a5] White must now prevent ...a5!} 38. Kh2 (38. Rxa6 $2 {is the wrong capture.} Bxc3 39. Rxc3 Rxc3 $19) 38... Bxh4 39. Rxa6 (39. gxh4 $2 {too greedy.} Rxf4 40. Kg1 Rg4+ 41. Kf1 Rxh4 $19) 39... Bf6) 38. Kh2 {[%emt 0:03:16]} Qc8 {[%emt 0:01:20]} 39. Qd3 {[%emt 0:01:13]} Rc4 {[%emt 0:00:11] Strongly threatening ...d4.} 40. Ra5 {[%emt 0:02:57]} Be7 {[%emt 0:02:53]} (40... d4 {simplifies} 41. Rc5 Rxc5 42. bxc5 Qxc5 43. c4 Bd8) 41. Rb1 $2 {[%emt 0:00:45][%mdl 8192] White does not recover from this.} (41. Rg1 $11) 41... Rxc3 $19 {[%emt 0:01:07]} 42. Qxa6 {[%emt 0:00:06]} Rc2+ {[%emt 0:00:02]} 43. Kh3 {[%emt 0:00:09]} Qc3 {[%emt 0:00:14] ( -> ...Qf3)} 44. Qf1 {[%emt 0:01:59] Wards off Qf3} Qd2 {[%emt 0:00:46][%csl Gc2][%cal Rd2h2]} 45. Qg1 {[%emt 0:00:22]} Qe2 {[%emt 0:00:07] Weighted Error Value: White=0.52/Black=0.14 (very precise)} 0-1